fUST/lending_fUST_20250923
["ID","MTS","AMOUNT","RATE_DAILY","PERIOD"]
[387195612,1758634251453,-480.0,0.00019726,2]
[387195613,1758634251463,-709.94,0.00019726,2]
[387195614,1758634251472,-480.0,0.00019726,2]
[387195615,1758634251482,-480.0,0.00019726,2]
[387195616,1758634251491,-480.0,0.00019726,2]
[387195617,1758634251500,-480.0,0.00019726,2]
[387195618,1758634251509,-1806.9,0.00019726,2]
[387195619,1758634251519,-964.74,0.00019726,2]
[387195620,1758634251528,-480.0,0.00019726,2]
[387195621,1758634251538,-1773.99,0.00019726,2]
[387195622,1758634251548,-480.0,0.00019726,2]
[387195623,1758634251557,-1090.09,0.00019726,2]
[387195624,1758634251567,-480.0,0.00019726,2]
[387195625,1758634251577,-480.0,0.00019726,2]
[387195626,1758634251586,-480.0,0.00019726,2]
[387195627,1758634251596,-498.1372238,0.00019726,2]
[387195628,1758634251606,-480.0,0.00019726,2]
[387195629,1758634251616,-1180.04,0.00019726,2]
[387195630,1758634251625,-480.0,0.00019726,2]
[387195631,1758634251635,-480.0,0.00019726,2]
[387195632,1758634251644,-480.0,0.00019726,2]
[387195633,1758634251654,-480.0,0.00019726,2]
[387195634,1758634251664,-480.0,0.00019726,2]
[387195635,1758634251673,-627.82,0.00019726,2]
[387195636,1758634251683,-480.0,0.00019726,2]
[387195637,1758634251692,-480.0,0.00019726,2]
[387195638,1758634251702,-480.0,0.00019726,2]
[387195639,1758634251712,-480.0,0.00019726,2]
[387195640,1758634251721,-480.0,0.00019726,2]
[387195641,1758634251731,-612.97,0.00019726,2]
[387195642,1758634251740,-643.34,0.00019726,2]
[387195643,1758634251750,-480.0,0.00019726,2]
[387195644,1758634251760,-480.0,0.00019726,2]
[387195645,1758634251769,-480.0,0.00019726,2]
[387195646,1758634251779,-480.0,0.00019726,2]
[387195647,1758634251788,-480.0,0.00019726,2]
[387195648,1758634251798,-480.0,0.00019726,2]
[387195649,1758634251807,-480.0,0.00019726,2]
[387195650,1758634251817,-687.47,0.00019726,2]
[387195651,1758634251828,-480.0,0.00019726,2]
[387195652,1758634251839,-480.0,0.00019726,2]
[387195653,1758634251848,-2119.29,0.00019726,2]
[387195654,1758634251859,-480.0,0.00019726,2]
[387195655,1758634251869,-480.0,0.00019726,2]
[387195656,1758634251879,-480.0,0.00019726,2]
[387195657,1758634251888,-621.75,0.00019726,2]
[387195658,1758634251898,-845.66,0.00019726,2]
[387195659,1758634251908,-926.74,0.00019726,2]
[387195660,1758634251918,-683.81,0.00019726,2]
[387195661,1758634251927,-480.0,0.00019726,2]
[387195662,1758634251936,-897.15,0.00019726,2]
[387195663,1758634251946,-1177.21,0.00019726,2]
[387195664,1758634251955,-491.17874272,0.00019726,2]
[387195665,1758634251964,-480.0,0.00019726,2]
[387195666,1758634251973,-480.0,0.00019726,2]
[387195667,1758634251982,-480.0,0.00019726,2]
[387195668,1758634251993,-480.0,0.00019726,2]
[387195669,1758634252002,-480.0,0.00019726,2]
[387195670,1758634252011,-480.0,0.00019726,2]
[387195671,1758634252022,-480.0,0.00019726,2]
[387195672,1758634252031,-234.32904614,0.00019726,2]
[387195673,1758634252040,-1071.02,0.00019726,2]
[387195674,1758634252050,-726.02,0.00019726,2]
[387195675,1758634252059,-480.0,0.00019726,2]
[387195676,1758634252070,-9076.35,0.00019726,2]
[387195677,1758634252079,-480.0,0.00019726,2]
[387195678,1758634252089,-480.0,0.00019726,2]
[387195679,1758634252098,-480.0,0.00019726,2]
[387195680,1758634252110,-693.25,0.00019726,2]
[387195681,1758634252119,-896.84,0.00019726,2]
[387195682,1758634252128,-855.27,0.00019726,2]
[387195683,1758634252138,-480.0,0.00019726,2]
[387195684,1758634252148,-480.0,0.00019726,2]
[387195685,1758634252157,-3272.65189688,0.00019788,2]
[387195748,1758635432598,-1194.683348,0.00018089,2]
[387195816,1758635438631,-987.70021439,0.00018089,2]
[387195817,1758635438640,-196.446425,0.00018356,2]
[387195818,1758635438650,-158.87826,0.00018779,3]
[387195819,1758635438659,-158.87826,0.00018905,3]
[387195820,1758635438669,-300.0,0.00019076,2]
[387195821,1758635438679,-253.0,0.00019076,2]
[387195822,1758635438688,-300.0,0.00019076,2]
[387195823,1758635438698,-1200.0,0.00019077,2]
[387195824,1758635438707,-1415.00121479,0.00019078,2]
[387195825,1758635438717,-7135.14475071,0.00019078,2]
[387195826,1758635438729,-6099.75782478,0.00019078,2]
[387195827,1758635438738,-1000.0,0.00019177,2]
[387195828,1758635438748,-1000.0,0.00019177,2]
[387195829,1758635438758,-1000.0,0.00019177,2]
[387195830,1758635438768,-1000.0,0.00019177,2]
[387195831,1758635438777,-1000.0,0.00019177,2]
[387195832,1758635438787,-1000.0,0.00019177,2]
[387195833,1758635438796,-500.0,0.00019177,2]
[387195834,1758635438805,-288.08952352,0.00019177,2]
[387195835,1758635438815,-500.0,0.00019177,2]
[387195836,1758635438824,-363.61890206,0.00019177,2]
[387195837,1758635438834,-500.0,0.00019177,2]
[387195838,1758635438843,-500.0,0.00019177,2]
[387195839,1758635438852,-152.32095653,0.00019178,2]
[387195840,1758635438864,-236.16649065,0.00019178,2]
[387195841,1758635438874,-480.0,0.00019178,2]
[387195842,1758635438883,-482.05923499,0.00019178,2]
[387195843,1758635438893,-480.0,0.00019178,2]
[387195844,1758635438903,-480.0,0.00019178,2]
[387195845,1758635438913,-480.0,0.00019178,2]
[387195846,1758635438925,-480.0,0.00019178,2]
[387195847,1758635438934,-480.0,0.00019178,2]
[387195848,1758635438943,-20.92262963,0.00019178,2]
[387195865,1758635443680,-459.07737037,0.00019178,2]
[387195866,1758635443689,-480.0,0.00019178,2]
[387195867,1758635443698,-480.0,0.00019178,2]
[387195868,1758635443707,-480.0,0.00019178,2]
[387195869,1758635443717,-503.10003186,0.00019178,2]
[387195870,1758635443727,-480.0,0.00019178,2]
[387195871,1758635443736,-611.23698426,0.00019178,2]
[387195872,1758635443746,-480.0,0.00019178,2]
[387195873,1758635443756,-480.0,0.00019178,2]
[387195874,1758635443765,-480.0,0.00019178,2]
[387195875,1758635443774,-480.0,0.00019178,2]
[387195876,1758635443784,-480.0,0.00019178,2]
[387195877,1758635443793,-480.0,0.00019178,2]
[387195879,1758635443803,-480.0,0.00019178,2]
[387195881,1758635443812,-480.0,0.00019178,2]
[387195882,1758635443821,-251.30242535,0.00019178,2]
[387195883,1758635443831,-480.0,0.00019178,2]
[387195884,1758635443840,-480.0,0.00019178,2]
[387195885,1758635443850,-482.38001354,0.00019178,2]
[387195888,1758635443970,-483.43857539,0.00019178,2]
[387195889,1758635443983,-480.0,0.00019178,2]
[387195890,1758635443993,-480.0,0.00019178,2]
[387195891,1758635444003,-544.62,0.00019178,2]
[387195892,1758635444012,-158.454,0.00019178,2]
[387195893,1758635444022,-480.0,0.00019178,2]
[387195894,1758635444032,-480.0,0.00019178,2]
[387195895,1758635444041,-480.0,0.00019178,2]
[387195896,1758635444051,-480.0,0.00019178,2]
[387195897,1758635444061,-480.0,0.00019178,2]
[387195898,1758635444070,-548.22,0.00019178,2]
[387195899,1758635444080,-2091.49,0.00019178,2]
[387195900,1758635444089,-480.0,0.00019178,2]
[387195901,1758635444099,-480.0,0.00019178,2]
[387195902,1758635444108,-480.0,0.00019178,2]
[387195903,1758635444119,-256.39676364,0.00019178,2]
[387195904,1758635444128,-480.0,0.00019178,2]
[387195905,1758635444137,-609.72,0.00019178,2]
[387195906,1758635444147,-480.0,0.00019178,2]
[387195907,1758635444156,-485.71123343,0.00019178,2]
[387195908,1758635444165,-480.0,0.00019178,2]
[387195909,1758635444175,-480.0,0.00019178,2]
[387195910,1758635444185,-456.62664937,0.00019178,2]
[387195911,1758635444194,-549.34,0.00019178,2]
[387195912,1758635444204,-784.74,0.00019178,2]
[387195913,1758635444214,-4492.83,0.00019178,2]
[387195914,1758635444224,-635.27,0.00019178,2]
[387195915,1758635444233,-480.0,0.00019178,2]
[387195916,1758635444247,-480.0,0.00019178,2]
[387195917,1758635444256,-480.0,0.00019178,2]
[387195918,1758635444266,-606.6,0.00019178,2]
[387195919,1758635444275,-499.41997567,0.00019178,2]
[387195920,1758635444285,-748.36,0.00019178,2]
[387195921,1758635444294,-505.89250239,0.00019178,2]
[387195922,1758635444303,-1552.24,0.00019178,2]
[387195923,1758635444313,-480.0,0.00019178,2]
[387195924,1758635444322,-480.0,0.00019178,2]
[387195925,1758635444331,-491.37079064,0.00019178,2]
[387195926,1758635444341,-613.93,0.00019178,2]
[387195927,1758635444350,-480.0,0.00019178,2]
[387195928,1758635444359,-480.0,0.00019178,2]
[387195929,1758635444371,-480.0,0.00019178,2]
[387195930,1758635444380,-844.15,0.00019178,2]
[387195931,1758635444389,-1032.53,0.00019178,2]
[387195932,1758635444399,-953.83,0.00019178,2]
[387195933,1758635444408,-480.0,0.00019178,2]
[387195934,1758635444418,-480.0,0.00019178,2]
[387195935,1758635444429,-480.0,0.00019178,2]
[387195936,1758635444438,-739.95,0.00019178,2]
[387195937,1758635444448,-480.0,0.00019178,2]
[387195938,1758635444459,-480.0,0.00019178,2]
[387195939,1758635444471,-344.90027773,0.00019178,2]
[387195940,1758635444481,-480.0,0.00019178,2]
[387195941,1758635444491,-480.0,0.00019178,2]
[387195942,1758635444502,-321.78034027,0.00019178,2]
[387195943,1758635444512,-239.64817912,0.00019178,2]
[387195944,1758635444523,-536.35,0.00019178,2]
[387195945,1758635444532,-464.25802383,0.00019178,2]
[387195946,1758635444541,-480.0,0.00019178,2]
[387195947,1758635444550,-475.03516888,0.00019178,2]
[387195948,1758635444559,-526.70859254,0.00019178,2]
[387195949,1758635444568,-480.0,0.00019178,2]
[387195950,1758635444577,-480.0,0.00019178,2]
[387195951,1758635444587,-480.0,0.00019178,2]
[387195952,1758635444596,-1854.38,0.00019178,2]
[387195953,1758635444605,-562.92,0.00019178,2]
[387195954,1758635444617,-480.0,0.00019178,2]
[387195955,1758635444626,-480.0,0.00019178,2]
[387195956,1758635444636,-810.9,0.00019178,2]
[387195957,1758635444645,-480.0,0.00019178,2]
[387195958,1758635444655,-601.53,0.00019178,2]
[387195959,1758635444664,-7941.81,0.00019178,2]
[387195960,1758635444673,-1581.04,0.00019178,2]
[387195961,1758635444682,-480.0,0.00019178,2]
[387195962,1758635444691,-480.0,0.00019178,2]
[387195963,1758635444701,-480.0,0.00019178,2]
[387195964,1758635444710,-480.0,0.00019178,2]
[387195965,1758635444720,-480.0,0.00019178,2]
[387195966,1758635444729,-785.01,0.00019178,2]
[387195967,1758635444738,-544.03,0.00019178,2]
[387195968,1758635444748,-516.59280123,0.00019178,2]
[387195969,1758635444757,-1030.06,0.00019178,2]
[387195970,1758635444766,-598.33,0.00019178,2]
[387195971,1758635444775,-480.0,0.00019178,2]
[387195972,1758635444785,-480.0,0.00019178,2]
[387195973,1758635444794,-459.34089145,0.00019178,2]
[387195974,1758635444803,-480.0,0.00019178,2]
[387195975,1758635444813,-480.0,0.00019178,2]
[387195976,1758635444823,-480.0,0.00019178,2]
[387195977,1758635444832,-937.14,0.00019178,2]
[387195978,1758635444842,-621.2,0.00019178,2]
[387195979,1758635444851,-1220.24,0.00019178,2]
[387195980,1758635444861,-480.0,0.00019178,2]
[387195981,1758635444871,-480.0,0.00019178,2]
[387195982,1758635444881,-480.0,0.00019178,2]
[387195983,1758635444891,-480.0,0.00019178,2]
[387195984,1758635444901,-480.0,0.00019178,2]
[387195985,1758635444910,-312.45989031,0.00019194,2]
[387195986,1758635444920,-978.0,0.00019328,2]
[387195987,1758635444930,-635.0,0.00019328,2]
[387195988,1758635444939,-2159.0,0.00019328,2]
[387195989,1758635444948,-897.3,0.00019442,3]
[387195990,1758635444957,-448.65,0.00019442,3]
[387195991,1758635444966,-224.32,0.00019442,3]
[387195992,1758635444976,-672.99,0.00019442,3]
[387195993,1758635444985,-462.402542,0.00019452,2]
[387195994,1758635444995,-480.0,0.00019452,2]
[387195995,1758635445005,-480.0,0.00019452,2]
[387195996,1758635445014,-480.0,0.00019452,2]
[387195997,1758635445023,-480.0,0.00019452,2]
[387195998,1758635445033,-480.0,0.00019452,2]
[387195999,1758635445043,-480.0,0.00019452,2]
[387196000,1758635445053,-480.0,0.00019452,2]
[387196001,1758635445063,-480.0,0.00019452,2]
[387196002,1758635445072,-480.0,0.00019452,2]
[387196003,1758635445082,-480.0,0.00019452,2]
[387196004,1758635445092,-480.0,0.00019452,2]
[387196005,1758635445101,-480.0,0.00019452,2]
[387196006,1758635445111,-487.64495336,0.00019452,2]
[387196007,1758635445121,-480.0,0.00019452,2]
[387196008,1758635445130,-480.0,0.00019452,2]
[387196009,1758635445140,-356.20244263,0.00019452,2]
[387196010,1758635445150,-544.62,0.00019452,2]
[387196011,1758635445159,-480.0,0.00019452,2]
[387196012,1758635445168,-480.0,0.00019452,2]
[387196013,1758635445177,-480.0,0.00019452,2]
[387196014,1758635445187,-480.0,0.00019452,2]
[387196015,1758635445196,-480.0,0.00019452,2]
[387196016,1758635445206,-548.22,0.00019452,2]
[387196017,1758635445215,-2091.49,0.00019452,2]
[387196018,1758635445224,-304.76,0.00019452,2]
[387196019,1758635445234,-480.0,0.00019452,2]
[387196020,1758635445247,-609.72,0.00019452,2]
[387196021,1758635445257,-480.0,0.00019452,2]
[387196022,1758635445266,-225.54824361,0.00019452,2]
[387196023,1758635445276,-480.0,0.00019452,2]
[387196024,1758635445285,-549.34,0.00019452,2]
[387196025,1758635445295,-784.74,0.00019452,2]
[387196026,1758635445304,-2305.89624429,0.00019452,2]
[387196040,1758635715905,300.0,0.00019558,20]
[387196041,1758635716547,300.0,0.00019558,20]
[387196042,1758635718969,300.0,0.00019558,20]
[387196043,1758635787410,300.0,0.00019558,20]
[387196044,1758635789451,300.0,0.00019558,20]
[387196046,1758636103741,187.84225641,0.00027397,120]
[387196073,1758636632800,-518.6459137,0.00018177,2]
[387196078,1758636632860,-481.3540863,0.00018177,2]
[387196080,1758636632873,-1238.12606288,0.00019077,2]
[387196082,1758636632885,-158.878261,0.00019129,3]
[387196084,1758636632895,-500.0,0.00019173,2]
[387196085,1758636632907,-500.0,0.00019173,2]
[387196086,1758636632919,-500.0,0.00019173,2]
[387196087,1758636632931,-300.0,0.00019175,2]
[387196088,1758636632943,-300.0,0.00019175,2]
[387196089,1758636632956,-1200.0,0.00019175,2]
[387196090,1758636632968,-1200.0,0.00019176,2]
[387196092,1758636632981,-9474.99960739,0.00019176,2]
[387196094,1758636632994,-13361.19102765,0.00019177,2]
[387196097,1758636633007,-383.99935303,0.00019177,2]
[387196099,1758636633020,-500.0,0.00019177,2]
[387196101,1758636633032,-250.0,0.00019177,2]
[387196103,1758636633042,-500.0,0.00019177,2]
[387196105,1758636633053,-251.82109047,0.00019177,2]
[387196107,1758636633064,-500.0,0.00019177,2]
[387196108,1758636633076,-264.29320506,0.00019177,2]
[387196109,1758636633088,-500.0,0.00019177,2]
[387196110,1758636633102,-500.0,0.00019177,2]
[387196111,1758636633118,-434.92036614,0.00019177,2]
[387196112,1758636633129,-500.0,0.00019177,2]
[387196113,1758636633140,-348.26570794,0.00019178,2]
[387196114,1758636633151,-501.60248268,0.00019178,2]
[387196115,1758636633164,-480.0,0.00019178,2]
[387196116,1758636633177,-480.0,0.00019178,2]
[387196117,1758636633188,-496.49513914,0.00019178,2]
[387196118,1758636633200,-480.0,0.00019178,2]
[387196119,1758636633212,-480.0,0.00019178,2]
[387196120,1758636633226,-480.0,0.00019178,2]
[387196121,1758636633239,-480.0,0.00019178,2]
[387196122,1758636633251,-480.0,0.00019178,2]
[387196123,1758636633264,-480.0,0.00019178,2]
[387196125,1758636633276,-480.0,0.00019178,2]
[387196127,1758636633288,-480.0,0.00019178,2]
[387196129,1758636633301,-480.0,0.00019178,2]
[387196131,1758636633313,-480.0,0.00019178,2]
[387196133,1758636633325,-480.0,0.00019178,2]
[387196136,1758636633337,-480.0,0.00019178,2]
[387196138,1758636633350,-480.0,0.00019178,2]
[387196140,1758636633363,-480.0,0.00019178,2]
[387196142,1758636633377,-480.0,0.00019178,2]
[387196145,1758636633389,-480.0,0.00019178,2]
[387196147,1758636633401,-480.0,0.00019178,2]
[387196149,1758636633413,-481.21622342,0.00019178,2]
[387196151,1758636633425,-480.0,0.00019178,2]
[387196153,1758636633436,-301.90206563,0.00019178,2]
[387196155,1758636633448,-480.0,0.00019178,2]
[387196156,1758636633459,-399.31347109,0.00019178,2]
[387196157,1758636633471,-480.0,0.00019178,2]
[387196158,1758636633482,-488.31964523,0.00019178,2]
[387196159,1758636633494,-480.0,0.00019178,2]
[387196160,1758636633505,-480.0,0.00019178,2]
[387196161,1758636633517,-480.0,0.00019178,2]
[387196162,1758636633528,-480.0,0.00019178,2]
[387196165,1758636633541,-480.0,0.00019178,2]
[387196167,1758636633552,-480.0,0.00019178,2]
[387196169,1758636633563,-485.8674501,0.00019178,2]
[387196171,1758636633575,-158.454,0.00019178,2]
[387196173,1758636633587,-480.0,0.00019178,2]
[387196176,1758636633599,-480.0,0.00019178,2]
[387196178,1758636633610,-480.0,0.00019178,2]
[387196180,1758636633623,-480.0,0.00019178,2]
[387196182,1758636633635,-519.24,0.00019178,2]
[387196184,1758636633647,-481.20154404,0.00019178,2]
[387196186,1758636633659,-480.0,0.00019178,2]
[387196189,1758636633671,-462.58156036,0.00019178,2]
[387196191,1758636633683,-480.0,0.00019178,2]
[387196193,1758636633694,-480.0,0.00019178,2]
[387196195,1758636633705,-480.0,0.00019178,2]
[387196197,1758636633719,-480.0,0.00019178,2]
[387196200,1758636633730,-480.0,0.00019178,2]
[387196201,1758636633740,-480.0,0.00019178,2]
[387196203,1758636633750,-480.0,0.00019178,2]
[387196205,1758636633760,-480.0,0.00019178,2]
[387196207,1758636633770,-480.0,0.00019178,2]
[387196209,1758636633781,-480.0,0.00019178,2]
[387196212,1758636633791,-480.0,0.00019178,2]
[387196221,1758636633956,-480.0,0.00019178,2]
[387196223,1758636633966,-480.0,0.00019178,2]
[387196225,1758636633976,-480.0,0.00019178,2]
[387196227,1758636633986,-480.0,0.00019178,2]
[387196229,1758636633996,-480.0,0.00019178,2]
[387196231,1758636634006,-480.0,0.00019178,2]
[387196233,1758636634016,-480.0,0.00019178,2]
[387196235,1758636634026,-480.0,0.00019178,2]
[387196237,1758636634036,-480.0,0.00019178,2]
[387196238,1758636634047,-480.0,0.00019178,2]
[387196241,1758636634057,-497.46602435,0.00019178,2]
[387196243,1758636634067,-351.72407359,0.00019178,2]
[387196244,1758636634078,-508.09300003,0.00019178,2]
[387196247,1758636634089,-480.0,0.00019178,2]
[387196249,1758636634100,-480.0,0.00019178,2]
[387196250,1758636634111,-480.0,0.00019178,2]
[387196253,1758636634122,-398.19971122,0.00019178,2]
[387196254,1758636634133,-480.0,0.00019178,2]
[387196256,1758636634144,-480.0,0.00019178,2]
[387196258,1758636634154,-480.0,0.00019178,2]
[387196261,1758636634165,-543.10094628,0.00019178,2]
[387196263,1758636634175,-483.05641242,0.00019178,2]
[387196265,1758636634186,-480.0,0.00019178,2]
[387196267,1758636634196,-480.0,0.00019178,2]
[387196268,1758636634205,-522.53,0.00019178,2]
[387196270,1758636634216,-480.0,0.00019178,2]
[387196272,1758636634230,-395.27390332,0.00019178,2]
[387196274,1758636634240,-248.50459044,0.00019178,2]
[387196275,1758636634249,-508.15544188,0.00019178,2]
[387196277,1758636634259,-480.0,0.00019178,2]
[387196279,1758636634269,-480.0,0.00019178,2]
[387196281,1758636634279,-480.0,0.00019178,2]
[387196282,1758636634288,-500.0,0.00019178,2]
[387196284,1758636634299,-480.0,0.00019178,2]
[387196285,1758636634309,-480.0,0.00019178,2]
[387196287,1758636634319,-480.0,0.00019178,2]
[387196288,1758636634329,-4209.55,0.00019178,2]
[387196290,1758636634338,-480.0,0.00019178,2]
[387196291,1758636634348,-740.07,0.00019178,2]
[387196293,1758636634358,-480.0,0.00019178,2]
[387196294,1758636634368,-480.0,0.00019178,2]
[387196295,1758636634379,-480.0,0.00019178,2]
[387196296,1758636634389,-480.0,0.00019178,2]
[387196297,1758636634399,-480.0,0.00019178,2]
[387196298,1758636634410,-480.0,0.00019178,2]
[387196299,1758636634420,-480.0,0.00019178,2]
[387196300,1758636634429,-480.0,0.00019178,2]
[387196301,1758636634439,-525.03806858,0.00019178,2]
[387196302,1758636634448,-480.0,0.00019178,2]
[387196303,1758636634458,-573.4,0.00019178,2]
[387196304,1758636634469,-480.0,0.00019178,2]
[387196305,1758636634479,-1917.2,0.00019178,2]
[387196306,1758636634489,-480.0,0.00019178,2]
[387196307,1758636634499,-578.91,0.00019178,2]
[387196308,1758636634509,-492.57521216,0.00019178,2]
[387196309,1758636634519,-588.35,0.00019178,2]
[387196310,1758636634529,-260.43213161,0.00019178,2]
[387196311,1758636634540,-480.0,0.00019178,2]
[387196312,1758636634550,-608.8,0.00019178,2]
[387196313,1758636634560,-480.0,0.00019178,2]
[387196314,1758636634570,-480.0,0.00019178,2]
[387196315,1758636634582,-480.0,0.00019178,2]
[387196316,1758636634592,-497.84069144,0.00019178,2]
[387196317,1758636634601,-480.0,0.00019178,2]
[387196318,1758636634611,-480.0,0.00019178,2]
[387196319,1758636634622,-480.0,0.00019178,2]
[387196320,1758636634632,-480.0,0.00019178,2]
[387196321,1758636634642,-480.0,0.00019178,2]
[387196322,1758636634652,-581.32,0.00019178,2]
[387196323,1758636634662,-480.0,0.00019178,2]
[387196324,1758636634672,-480.0,0.00019178,2]
[387196325,1758636634681,-717.18,0.00019178,2]
[387196326,1758636634693,-480.0,0.00019178,2]
[387196327,1758636634703,-480.0,0.00019178,2]
[387196328,1758636634712,-480.0,0.00019178,2]
[387196329,1758636634721,-480.0,0.00019178,2]
[387196330,1758636634731,-480.0,0.00019178,2]
[387196331,1758636634741,-480.0,0.00019178,2]
[387196332,1758636634751,-208.86633553,0.00019178,2]
[387196333,1758636634760,-355.54313552,0.00019178,2]
[387196334,1758636634776,-124.45686448,0.00019178,2]
[387196335,1758636634785,-480.79353122,0.00019178,2]
[387196336,1758636634795,-1205.53,0.00019178,2]
[387196337,1758636634805,-20.69564613,0.00019178,2]
[387196348,1758636638663,-459.30435387,0.00019178,2]
[387196349,1758636638673,-480.0,0.00019178,2]
[387196350,1758636638682,-480.0,0.00019178,2]
[387196351,1758636638692,-480.0,0.00019178,2]
[387196352,1758636638702,-161.05228132,0.00019178,2]
[387196353,1758636638714,-257.76460607,0.00019178,2]
[387196354,1758636638724,-595.32,0.00019178,2]
[387196355,1758636638733,-480.0,0.00019178,2]
[387196356,1758636638743,-480.0,0.00019178,2]
[387196357,1758636638752,-480.0,0.00019178,2]
[387196358,1758636638762,-480.0,0.00019178,2]
[387196359,1758636638772,-480.0,0.00019178,2]
[387196360,1758636638782,-152.73320551,0.00019178,2]
[387196381,1758636640853,-327.26679449,0.00019178,2]
[387196383,1758636640863,-2.35578677,0.00019178,2]
[387196389,1758636640912,-1485.20421323,0.00019178,2]
[387196391,1758636640923,-838.95,0.00019178,2]
[387196393,1758636640932,-480.0,0.00019178,2]
[387196395,1758636640941,-480.0,0.00019178,2]
[387196397,1758636640951,-1376.26931696,0.00019178,2]
[387196513,1758636643819,-6551.94068304,0.00019178,2]
[387196514,1758636643829,-480.0,0.00019178,2]
[387196515,1758636643839,-989.51,0.00019178,2]
[387196516,1758636643849,-480.0,0.00019178,2]
[387196517,1758636643858,-480.0,0.00019178,2]
[387196518,1758636643868,-489.70740089,0.00019178,2]
[387196519,1758636643878,-914.09,0.00019178,2]
[387196520,1758636643888,-480.0,0.00019178,2]
[387196521,1758636643897,-531.44,0.00019178,2]
[387196522,1758636643906,-394.97009094,0.00019178,2]
[387196523,1758636643917,-480.0,0.00019178,2]
[387196524,1758636643926,-514.0,0.00019178,2]
[387196525,1758636643936,-480.0,0.00019178,2]
[387196526,1758636643946,-1515.17,0.00019178,2]
[387196527,1758636643956,-480.0,0.00019178,2]
[387196528,1758636643965,-480.0,0.00019178,2]
[387196530,1758636643975,-480.0,0.00019178,2]
[387196531,1758636643984,-480.0,0.00019178,2]
[387196533,1758636643994,-480.0,0.00019178,2]
[387196534,1758636644003,-480.0,0.00019178,2]
[387196535,1758636644012,-480.0,0.00019178,2]
[387196536,1758636644022,-480.0,0.00019178,2]
[387196537,1758636644031,-480.0,0.00019178,2]
[387196538,1758636644040,-480.0,0.00019178,2]
[387196539,1758636644050,-480.0,0.00019178,2]
[387196540,1758636644059,-480.0,0.00019178,2]
[387196541,1758636644069,-480.0,0.00019178,2]
[387196542,1758636644078,-480.0,0.00019178,2]
[387196543,1758636644088,-777.11,0.00019178,2]
[387196544,1758636644097,-539.46,0.00019178,2]
[387196545,1758636644107,-480.0,0.00019178,2]
[387196546,1758636644117,-480.0,0.00019178,2]
[387196547,1758636644126,-233.09227744,0.00019178,2]
[387196548,1758636644137,-480.0,0.00019178,2]
[387196549,1758636644147,-480.0,0.00019178,2]
[387196550,1758636644157,-987.14,0.00019178,2]
[387196551,1758636644167,-1777.11,0.00019178,2]
[387196552,1758636644177,-480.0,0.00019178,2]
[387196553,1758636644186,-480.0,0.00019178,2]
[387196554,1758636644196,-480.0,0.00019178,2]
[387196555,1758636644205,-480.0,0.00019178,2]
[387196556,1758636644214,-898.1,0.00019178,2]
[387196557,1758636644223,-480.0,0.00019178,2]
[387196558,1758636644236,-480.0,0.00019178,2]